Cogmind - Beta 11 @@@ ROGUE MODE // 2022.04.03 @ 13:05:09 Player: Finestep Result: Destroyed by as-57381 with Assembled Rifle Performance ------------- Evolutions (0) 0 Regions Visited (2) 400 Robots Destroyed (27) 135 Value Destroyed (427) 427 Prototype IDs (0) 0 Alien Tech Used (0) 0 Bonus (-19) -19 TOTAL SCORE: 943 Bonus ------- Friendly Fire -19 Cogmind --------- Core Integrity 0/250 Matter 1/300 Energy 138/250 System Corruption 0% Temperature Cool (0) Movement Walking (260) Ox2 Location -10/Mines Parts ------- > --- POWER (1) -------- Ion Engine > --- PROPULSION (2) --- Aluminum Leg Aluminum Leg > --- UTILITY (2) ------ High-capacity Storage Unit Structural Scanner > --- WEAPON (2) ------- Light Assault Rifle Grenade Launcher > --- INVENTORY (20) --- Light Treads Light Treads Large Storage Unit Structural Scanner Assault Rifle Assault Rifle Light Assault Rifle Light Assault Rifle Light Assault Rifle Mining Laser Peak State ------------ > --- POWER ------------ Ion Engine > --- PROPULSION ------- Aluminum Leg Aluminum Leg > --- UTILITY ---------- High-capacity Storage Unit Structural Scanner > --- WEAPON ----------- Assault Rifle Light Assault Rifle > --- INVENTORY -------- Ion Engine Light Treads Light Treads Structural Scanner Light Assault Rifle Light Assault Rifle Light Assault Rifle Grenade Launcher Grenade Launcher Hammer [Rating: 8] Favorites ----------- Power Ion Engine Engine Ion Engine Propulsion Aluminum Leg Leg Aluminum Leg Utility High-capacity Storage Unit Device Structural Scanner Storage High-capacity Storage Unit Weapon Light Assault Rifle Ballistic Gun Light Assault Rifle Launcher Grenade Launcher Special Weapon Mining Laser Impact Weapon Hammer Build | -11 -10 -10 ------- Run | Scr Mat Min Slots Evolved . | . . . Power . | . . . Propulsion . | . . . Utility . | . . . Weapon . | . . . Parts Attached 26 | 7 8 11 Power 2 | 1 . 1 Engine 2 | 1 . 1 Core . | . . . Reactor . | . . . Propulsion 5 | 2 1 2 Treads . | . . . Leg 5 | 2 1 2 Wheel . | . . . Hover . | . . . Flight . | . . . Utility 4 | 2 2 . Device 2 | 1 1 . Storage 2 | 1 1 . Processor . | . . . Hackware . | . . . Protection . | . . . Artifact . | . . . Weapon 15 | 2 5 8 Energy Gun . | . . . Energy Cannon . | . . . Ballistic Gun 8 | 2 2 4 Ballistic Cannon . | . . . Launcher 5 | . 1 4 Special Weapon 1 | . 1 . Impact Weapon 1 | . 1 . Slashing Weapon . | . . . Piercing Weapon . | . . . Special Melee Weapon . | . . . Unidentified Prototypes . | . . . Parts Lost 5 | . . 5 Power 1 | . . 1 Propulsion 2 | . . 2 Utility . | . . . Weapon 2 | . . 2 Highest Loss Streak 5 | . . 5 To Critical Strikes . | . . . Average Slot Usage (%) 99 | . 100 99 Engine 14 | . 14 14 Leg 28 | . 28 28 Device 13 | . 13 14 Storage 14 | . 14 14 Ballistic Gun 27 | . 27 24 Naked Turns . | . . . Heaviest Build 53 | 14 53 50 Greatest Support 20 | 20 20 20 Greatest Overweight (x) 2 | . 2 2 Average Overweight (x) 1 | . 1 2 Largest Inventory Capacity 20 | 8 20 20 Average Capacity 16 | 6 16 20 Most Carried 15 | 5 14 15 Average Carried 10 | 3 10 14 Final Capacity 20 | 8 20 20 Final Carried 14 | 5 14 10 Class Distribution -------------------- 100% | Mutant Dominant Class ---------------- Mutant | -10/Materials Mutant | -10/Mines Resources | -11 -10 -10 ----------- Run | Scr Mat Min Matter Collected 600 | 292 304 4 Remotely . | . . . Salvage Created 808 | 107 663 38 Parts 56 | 6 47 3 Haulers Intercepted 2 | . 2 . Recyclers Shooed . | . . . Parts Field Recycled . | . . . Retrieved Matter . | . . . Parts Self-Destructed . | . . . Prevented . | . . . Kills | -11 -10 -10 ------- Run | Scr Mat Min Combat Hostiles Destroyed 28 | . 16 12 Guns 17 | . 16 1 AOE 11 | . . 11 Classes Destroyed 9 | 2 6 1 Worker 1 | . 1 . Builder 1 | . 1 . Tunneler 1 | 1 . . Hauler 2 | . 2 . Recycler 2 | 1 1 . Watcher 1 | . 1 . Swarmer 11 | . 8 3 Grunt 8 | . 8 . Assembled 9 | . . 9 Best Kill Streak 8 | 2 5 8 Combat Bots Only 8 | . 4 8 Max Kills in Single Turn 3 | 1 1 3 Gunslinging . | . . . Exploded 3 | . . 3 Melee . | . . . Uniques/NPCs Destroyed . | . . . Combat | -11 -10 -10 -------- Run | Scr Mat Min Damage Taken 953 | . 405 548 Core 254 | . 71 183 Absorbed by Shields . | . . . Core Remaining (%) 100 | 100 . . Volleys Fired 100 | 8 72 20 Largest 2 | 2 2 2 Hottest 40 | 40 40 40 Shots Fired 185 | 16 143 26 Gun 172 | 16 142 14 Cannon . | . . . Launcher 13 | . 1 12 Special . | . . . Kinetic 172 | 16 142 14 Thermal . | . . . Explosive 13 | . 1 12 Electromagnetic . | . . . Robot Hit Streak 6 | 6 6 6 Robot Miss Streak 5 | 3 5 1 Penetration Max . | . . . Secondary Targets 1 | . 1 . Max Gunslinging Chain 1 | . 1 . Shots Hit Robots 101 | 11 79 11 Core Hits 68 | 5 39 24 Critical Kills 1 | . 1 . Critical Parts Destroyed . | . . . Critical Strikes 1 | . 1 . Destroy 1 | . 1 . Melee Attacks 4 | . 4 . Impact 4 | . 4 . Slashing . | . . . Piercing . | . . . Sneak Attacks . | . . . Combat Hostiles . | . . . Follow-up Attacks . | . . . Damage Inflicted 1788 | 110 875 803 Guns 1066 | 110 875 81 Cannons . | . . . Explosions 722 | . . 722 Melee . | . . . Ramming . | . . . Kinetic 1066 | 110 875 81 Thermal . | . . . Explosive 722 | . . 722 Electromagnetic . | . . . Impact . | . . . Slashing . | . . . Piercing . | . . . Highest Corruption . | . . . Average Corruption . | . . . Corruption Purged . | . . . Corruption Blocked . | . . . Overload Shots . | . . . Overflow Damage 3 | . . 3 Projectiles . | . . . Explosions 3 | . . 3 Melee . | . . . Knockbacks . | . . . Impact . | . . . Kinetic . | . . . Secondary . | . . . Self-Inflicted Damage 33 | . . 33 Shots 2 | . . 2 Rammed . | . . . Targets Rammed . | . . . Kicked . | . . . Crushed . | . . . Highest Temperature 12 | . 12 . Average Temperature 6 | . 6 . Received Heat Transfer 126 | . 126 . Siege Activations . | . . . Robots Corrupted . | . . . Combat Hostiles . | . . . Parts Fried . | . . . Impact Corruptions . | . . . Robots Melted . | . . . Combat Hostiles . | . . . Parts Melted . | . . . Heat Transferred . | . . . Parts Sabotaged . | . . . Parts Stolen . | . . . Parts Stripped . | . . . Power Chain Reactions . | . . . Missiles Intercepted . | . . . Alert | -11 -10 -10 ------- Run | Scr Mat Min Peak Influence 276 | 10 276 244 Initial 79 | . 6 79 Average 147 | 2 149 202 Maximum Alert Level 1 | . 1 1 Low Security (%) 57 | 100 64 5 Level 1 42 | . 35 94 Level 2 . | . . . Level 3 . | . . . Level 4 . | . . . Level 5 . | . . . High Security . | . . . Max Security . | . . . Squads Dispatched 5 | . 5 . Investigation 2 | . 2 . Extermination . | . . . Reinforcement 3 | . 3 . Assault . | . . . Garrison . | . . . Intercept . | . . . Searches Triggered . | . . . Construction Impeded . | . . . Haulers Reinforced . | . . . Active Scanning Responses . | . . . Cargo Convoy Interrupts . | . . . Stealth | -11 -10 -10 --------- Run | Scr Mat Min Distress Signals 3 | . 3 . Communications Jammed . | . . . Distress Signals . | . . . Times Spotted 50 | . 34 16 Peak Tracking Total 5 | . 5 5 Tactical Retreats 2 | . 1 1 Traps | -11 -10 -10 ------- Run | Scr Mat Min Traps Triggered . | . . . Indirectly . | . . . Trap Hack Attempts . | . . . Triggered . | . . . Disarmed . | . . . Reprogrammed . | . . . Reused . | . . . Traps Extracted . | . . . Installed . | . . . Triggered . | . . . Machines | -11 -10 -10 ---------- Run | Scr Mat Min Machines Disabled . | . . . Max in Single Turn . | . . . Machines Sabotaged . | . . . Garrisons Compromised . | . . . Overloaded Fab Kills . | . . . Hacking | -11 -10 -10 --------- Run | Scr Mat Min Machines Accessed 5 | . 5 . Terminals 3 | . 3 . Fabricators . | . . . Repair Stations . | . . . Recycling Units 2 | . 2 . Scanalyzers . | . . . Garrison Access . | . . . Total Hacks 15 | . 15 . Successful 9 | . 9 . Failed 5 | . 5 . Catastrophic 1 | . 1 . Database Lockouts 1 | . 1 . Manual 10 | . 10 . Terminals 10 | . 10 . Fabricators . | . . . Repair Stations . | . . . Recycling Units 5 | . 5 . Scanalyzers . | . . . Garrison Access . | . . . Terminal Hacks 4 | . 4 . Part Schematic 2 | . 2 . Branch Access Points 1 | . 1 . Terminal Index 1 | . 1 . Fabricator Hacks . | . . . Repair Station Hacks . | . . . Recycling Unit Hacks 2 | . 2 . Retrieve Components 2 | . 2 . Scanalyzer . | . . . Garrison Access Hacks . | . . . Unauthorized Hacks 3 | . 3 . Terminals 1 | . 1 . Botnet 1 | . 1 . Fabricators . | . . . Repair Stations . | . . . Recycling Units 2 | . 2 . Tunnel 2 | . 2 . Scanalyzers . | . . . Garrison Access . | . . . Data Cores Recovered . | . . . Used . | . . . Hacking Detections 4 | . 4 . Full Trace Events . | . . . Feedback Events . | . . . Feedback Blocked . | . . . Robot Schematics Acquired . | . . . Robots Built . | . . . Authchips . | . . . Time . | . . . Total Robot Build Rating . | . . . Part Schematics Acquired 2 | . 2 . Parts Built . | . . . Authchips . | . . . Time . | . . . Total Part Build Rating . | . . . Parts Repaired . | . . . Time . | . . . Parts Recycled . | . . . Recycled Matter . | . . . Retrieved Matter . | . . . Retrieved Components 12 | . 12 . Parts Scanalyzed . | . . . Part Schematics Acquired . | . . . Parts Damaged . | . . . Bothacking | -11 -10 -10 ------------ Run | Scr Mat Min Used RIF Installer . | . . . Robots Hacked . | . . . Non-combat . | . . . Combat . | . . . Robot Hacks Applied . | . . . Relay Couplers Released . | . . . Fabnet Peak Effective % . | . . . Robots Rewired . | . . . Allies Hacked . | . . . Hacks Repelled . | . . . Allies | -11 -10 -10 -------- Run | Scr Mat Min Total Allies . | . . . Largest Group . | . . . Highest-Rated Group . | . . . Highest-Rated Ally . | . . . Total Orders . | . . . Ally Attacks . | . . . Total Damage . | . . . Kills . | . . . Allies Corrupted . | . . . Allies Melted . | . . . Intel | -11 -10 -10 ------- Run | Scr Mat Min Robot Analysis Total . | . . . Derelict Logs Recovered . | . . . Drone Launches . | . . . Drone Recoveries . | . . . Exploration | -11 -10 -10 ------------- Run | Scr Mat Min Turns Passed 1666 | 113 1300 253 Spaces Moved 692 | 66 551 75 Core 6 | 6 . . Treads . | . . . Legs 686 | 60 551 75 Wheels . | . . . Hover . | . . . Flight . | . . . Fastest Speed 50 | 50 120 260 Average Speed 190 | 113 190 260 Slowest Speed 260 | 120 260 260 Overloaded Moves . | . . . Propulsion Burnouts . | . . . Robots Hopped . | . . . Cave-ins Triggered . | . . . Exploration Rate (%) 45 | 5 93 37 Regions Visited 2 Branch Regions 1 Pre-discovered Areas 2 | . 2 . Known Exits Taken 1 | . 1 . Unknown Exits Taken 1 | 1 . . Scrap Searched . | . . . Spaces Dug 17 | . 1 16 Terrain Destroyed 59 | . 13 46 Melee 1 | . 1 . Projectile . | . . . AOE 58 | . 12 46 Terrain Rammed . | . . . Walls Destroyed . | . . . Machines Disabled . | . . . Actions | -11 -10 -10 --------- Run | Scr Mat Min Total 862 | 86 670 106 Wait 10 | . 10 . Move 690 | 65 550 75 Hop . | . . . Pick Up 22 | 6 16 . Fast Attach 8 | 6 2 . Attach 7 | 1 1 5 Detach . | . . . Swap 11 | . 5 6 Drop 10 | . 10 . Fire 100 | 8 72 20 Melee 4 | . 4 . Ram . | . . . Kick . | . . . Crush . | . . . Escape Stasis . | . . . Rewire . | . . . Trap . | . . . Miscellaneous . | . . . Route ------- -11/Scrapyard -10/Materials (discovered 5 exits: [*Mat x3] / *Min x2) -10/Mines History --------- Turn | Location | Event 6 | -11/Scrapyard | Discovered new exit (range 16) 114 | -11/Scrapyard | Entered Materials 229 | -10/Materials | Discovered new exit (range 15) 338 | -10/Materials | Build established: Mutant 359 | -10/Materials | Discovered new exit (range 16) 483 | -10/Materials | Central database locked down 517 | -10/Materials | Discovered new exit (range 11) 945 | -10/Materials | Discovered new exit (range 11) 958 | -10/Materials | Discovered new exit (range 16) 1085 | -10/Materials | Identified exit to Mines 1414 | -10/Materials | Entered Mines 1570 | -10/Mines | Assembled infested the area 1575 | -10/Mines | Assisted by a Guerilla fighting off Assembled 1638 | -10/Mines | Core integrity fell below 50% 1643 | -10/Mines | Destroyed 8 combat bots 1660 | -10/Mines | Core integrity fell below 20% 1667 | -10/Mines | Destroyed by as-57381 with Assembled Rifle Last Messages --------------- 01617_ as-68553 sneak attacks. 01617_ PJ-KAO(h) knocked back. 01618_ as-80802 destroyed. 01620_ as-29003 destroyed. 01620_ Destroyed Asb. Hover Unit. 01620_ as-68553 destroyed. 01621_ Aluminum Leg destroyed. 01622_ as-88715 destroyed. 01632_ The unstable cave ceiling collapses. 01636_ R-06 Scavenger collects Cmb. Airjet. 01636_ PJ-KAO(h) reactivates. 01638_ as-52128 knocked back. 01640_ Aluminum Leg destroyed. 01640_ Ion Engine destroyed. 01642_ The unstable cave ceiling collapses. 01645_ Lgt. Assault Rifle destroyed. 01656_ as-52128 destroyed. 01662_ Grenade Launcher destroyed. 01665_ as-40258 destroyed. 01667_ The unstable cave ceiling collapses. Map ----- +----------------------------------------------------+ | ?????????????????????????????????????????????????? | | ?????????????????????????????????????????????????? | | ?????????????????????????????????????????????????? | | ?????????????????????????????????????????????????? | | ?????????????????????????????????????????????????? | | ?????????????????????????????????????????????????? | | ?????????????????????????????????????????????????? | | ????????????????????## ??????????????????????????? | | ????????????????????##"% ????????????????????????? | | ?????????????????## ????????????????????????? | | ?????????????????## ???????????????????????? | | ?????????????###?# % ???????????????????????? | | ???????????? ##### ???????????????????????? | | ??????????? #### ???????????????????????? | | ??????????? ## % ????????????????????????? | | ?????????? ????????????????????????? | | ????????? % a ????????????????????????? | | ?????????## % ##??????????????????????? | | ?????????## ###?????????????????????? | | ?????????### ! ####????????????????????? | | ??????????## # # %% ###????????????????????? | | ??????????## ] ????????????????????? | | ??????????### ####?? ?????????????????? | | ???????????### # ####? ##???????????????? | | ????????????## a ###? ##???????????????? | | ????????????## % @ ##? ###??????????????? | | ???????? ! # # ##? ###??????????????? | | ????????*%= ?? ## ### ??????????????? | | ???????????????##### #### ##???????????????? | | ????????????????###### ##### ###??????????????? | | ????????????????### ##### ###??????????????? | | ???????????????### ##### ##?????#######??? | | ??????????######## ###### ###???#########?? | | ?????????######## ####### ####?#### ##### | | ?????####### ###?### #### | | ?????###### ##?## | | ????### """ ######## ##?## | | ???### """ ######## ###### | | ???## """ ###???##### ###### | | ???## ##???##### ##### | | ???## ##????#### #### ### | | ???## ##????### ## #### | | ???### ## ###????## #### """ | | ???######## ###????## #### """ | | ????######## ## ###?????### ########### """ | | ?????????#############?????################ | | ??????????###########???????######???????### | | ?????????????????????????????????????????#### | | ??????????????????????????????????????????### | | ???????????????????????????????????????????## | +----------------------------------------------------+ Best States ------------- Heat Dissipation 25 Energy Generation 10 Energy Capacity 250 Matter Stores 300 Matter Capacity 300 Sight Range 16 Terrain Scan Density 10 Evasion (%) 55 Item Schematics ----------------- Hcp. Storage Unit | -10/Materials | Hacked Huge Storage Unit | -10/Materials | Hacked Robot Schematics ------------------ None Fabricated ------------ Nothing Alien Tech Used ----------------- None Achievements -------------- None Challenges ------------ None Game ------ Seed OmegaCooledCorpse Manual? 0 Play Time 00:09:31 Cumulative 576.6 hours Start 2022.04.03 @ 12:57:20 End 2022.04.03 @ 13:05:09 Sessions 1 Manual Loads 0 Difficulty Rogue Special Mode None Game No. 364 Rogue 364 Adventurer 0 Explorer 0 Win Type - Total 7 Types 5/0/1/0/1/0/0/0/0 Lore% 85 Gallery% 86 Achievement% 74 Wizard Run 0 Options --------- ASCII 0 Keyboard 0 Movement Mouse Keybinds 1 Fullscreen 2 Font 24/Smallcaps Map View 68x50 Tactical HUD 1 Map Filters NONE Filters NONE Steam 1 RUN: 033c5fce-7349-4778-a45b-36554e239bc6